[Event "Charlotte Fall GM-A 2023"]
[Site "Charlotte"]
[Date "2023.11.19"]
[Round "5.5"]
[White "Chen, Ryo"]
[Black "Gauri, Shankar"]
[Result "1/2-1/2"]
[ECO "C65"]
[WhiteElo "2367"]
[BlackElo "2351"]
[Annotator "RC"]
[PlyCount "52"]
[EventDate "2023.11.17"]
[EventType "tourn"]
[EventCountry "USA"]
[SourceTitle "playchess.com"]
[Source "ChessBase"]
[SourceQuality "1"]
[TimeControl "5400+30"]

1. e4 {[%emt 0:03:01]} e5 {[%emt 0:03:32]} 2. Nf3 {[%emt 0:00:07]} Nc6 {[%emt 0:00:20]} 3. Bb5 {[%emt 1:28:52]} Nf6 {[%emt 0:00:15]} 4. d3 {[%emt 0:00:00]} Bc5 {[%emt 0:00:10]} 5. Bxc6 {[%emt 0:00:00]} dxc6 {[%emt 0:00:20]} 6. O-O {[%emt 0:00:00]} Nd7 {[%emt 0:10:18]} 7. c3 {[%emt 0:00:00]} O-O {[%emt 0:00:57]} 8. d4 {[%emt 0:00:00]} Bd6 {[%emt 0:00:14]} 9. Bg5 {[%emt 0:00:00]} f6 {[%emt 0:02:05]} 10. Bh4 {[%emt 0:00:00]} Qe8 {[%emt 0:06:29]} 11. Nbd2 {[%emt 0:00:00]} Nb6 {[%emt 0:05:12]} 12. Bg3 {[%emt 0:00:00]} Bg4 {[%emt 1:06:38]} 13. Qb3+ {[%emt 0:00:00]} Kh8 {[%emt 0:00:00]} 14. h3 {[%emt 0:00:00]} Bh5 {[%emt 0:00:00]} 15. Nh4 {[%emt 0:00:00]} Bf7 {[%emt 0:00:00]} 16. Qc2 {[%emt 0:00:00]} exd4 {[%emt 0:00:00]} 17. Bxd6 {[%emt 0:00:00]} cxd6 {[%emt 0:00:00]} 18. cxd4 {[%emt 0:00:00]} d5 {[%emt 0:00:00]} 19. Rfe1 {[%emt 0:00:00]} Qd8 {[%emt 0:00:00]} 20. Qc5 {[%emt 0:00:00]} g6 {[%emt 0:00:00]} 21. Nhf3 {[%emt 0:00:00]} dxe4 {[%emt 0:00:00]} 22. Rxe4 {[%emt 0:00:00]} Nd5 {[%emt 0:00:00]} 23. Rae1 {[%emt 0:00:00]} Qd7 {[%emt 0:00:00]} 24. Nc4 {[%emt 0:02:38]} b6 {[%emt 0:00:46]} 25. Qa3 {[%emt 0:00:48]} Rad8 {[%emt 0:01:04]} 26. Ne3 {[%emt 0:03:10]} a5 {[%emt 0:05:10]} 1/2-1/2

[Event "Charlotte Fall GM-A 2023"]
[Site "Charlotte"]
[Date "2023.11.20"]
[Round "6.1"]
[White "Sandoval Mercado, Carlos"]
[Black "Gauri, Shankar"]
[Result "1-0"]
[ECO "E71"]
[WhiteElo "2397"]
[BlackElo "2351"]
[Annotator "RC"]
[PlyCount "109"]
[EventDate "2023.11.17"]
[EventType "tourn"]
[EventCountry "USA"]
[SourceTitle "playchess.com"]
[Source "ChessBase"]
[SourceQuality "1"]
[TimeControl "5400+30"]

1. d4 {[%emt 0:02:25]} Nf6 {[%emt 0:08:37]} 2. c4 {[%emt 0:00:08]} g6 {[%emt 0:00:27]} 3. Nc3 {[%emt 0:00:54]} Bg7 {[%emt 0:00:07]} 4. e4 {[%emt 0:00:05]} d6 {[%emt 0:00:06]} 5. h3 {[%emt 0:00:04]} O-O {[%emt 0:00:41]} 6. Be3 {[%emt 0:00:04]} e5 {[%emt 0:00:34]} 7. d5 {[%emt 0:00:05]} Na6 {[%emt 0:01:11]} 8. Be2 {[%emt 0:01:42]} Ne8 {[%emt 0:07:18]} 9. g4 {[%emt 0:02:11]} f5 {[%emt 0:00:42]} 10. exf5 {[%emt 0:01:54]} gxf5 {[%emt 0:02:13]} 11. gxf5 {[%emt 0:00:09]} Bxf5 {[%emt 0:00:24]} 12. Nf3 {[%emt 0:02:59]} Kh8 {[%emt 0:08:39]} 13. Qd2 {[%emt 0:01:54]} Nc5 {[%emt 0:02:56]} 14. Rg1 {[%emt 0:03:55]} Qd7 {[%emt 0:17:00]} 15. O-O-O {[%emt 0:06:47]} Nf6 {[%emt 0:02:29]} 16. Bxc5 {[%emt 0:09:16]} dxc5 {[%emt 0:00:03]} 17. Nxe5 {[%emt 0:00:43]} Qe7 {[%emt 0:00:36]} 18. f4 {[%emt 0:14:32]} Nd7 {[%emt 0:01:41]} 19. d6 {[%emt 0:09:31]} cxd6 {[%emt 0:12:32]} 20. Nd5 {[%emt 0:00:05]} Qd8 {[%emt 0:08:41]} 21. Rxg7 {[%emt 0:02:11]} Kxg7 {[%emt 0:04:50]} 22. Rg1+ {[%emt 0:01:05]} Bg6 {[%emt 0:01:24]} 23. Nxg6 {[%emt 0:04:01]} hxg6 {[%emt 0:00:09]} 24. Bd3 {[%emt 0:00:21]} Qh4 {[%emt 0:06:13]} 25. Qc3+ {[%emt 0:05:50]} Rf6 {[%emt 0:01:02]} 26. Rg4 {[%emt 0:00:26]} Qh8 {[%emt 0:03:50]} 27. Bf5 {[%emt 0:04:57]} Ne5 {[%emt 0:01:46]} 28. Nxf6 {[%emt 0:01:05]} Nxg4 {[%emt 0:02:52]} 29. Bxg4 {[%emt 0:00:35]} Kh6 {[%emt 0:04:13]} 30. Nd5 {[%emt 0:00:57]} Qxc3+ {[%emt 0:00:15]} 31. Nxc3 {[%emt 0:00:05]} Rf8 {[%emt 0:00:22]} 32. Nd5 {[%emt 0:00:03]} Re8 {[%emt 0:00:02]} 33. Kd2 {[%emt 0:00:43]} Re4 {[%emt 0:00:01]} 34. Be2 {[%emt 0:01:23]} b5 {[%emt 0:00:02]} 35. Bd3 {[%emt 0:00:37]} Rd4 {[%emt 0:00:14]} 36. b3 {[%emt 0:00:06]} bxc4 {[%emt 0:00:10]} 37. bxc4 {[%emt 0:00:01]} Kh5 {[%emt 0:03:17]} 38. Ke3 {[%emt 0:01:53]} Kh4 {[%emt 0:00:01]} 39. Nc3 {[%emt 0:03:24]} g5 {[%emt 0:01:48]} 40. Ne2 {[%emt 0:01:50]} gxf4+ {[%emt 0:00:29]} 41. Nxf4 {[%emt 0:00:37]} d5 {[%emt 0:00:22]} 42. cxd5 {[%emt 0:00:24]} Rb4 {[%emt 0:00:07]} 43. Ng6+ {[%emt 0:03:01]} Kxh3 {[%emt 0:00:17]} 44. Ne5 {[%emt 0:00:04]} Rd4 {[%emt 0:00:30]} 45. Be4 {[%emt 0:01:19]} Kg3 {[%emt 0:01:16]} 46. Nd3 {[%emt 0:01:02]} Rc4 {[%emt 0:00:28]} 47. Bf5 {[%emt 0:01:54]} Kh4 {[%emt 0:00:21]} 48. d6 {[%emt 0:02:06]} Rd4 {[%emt 0:00:38]} 49. d7 {[%emt 0:00:05]} Kg5 {[%emt 0:00:32]} 50. Bh3 {[%emt 0:00:09]} Kf6 {[%emt 0:00:31]} 51. Nxc5 {[%emt 0:00:06]} Rd1 {[%emt 0:00:25]} 52. Nb7 {[%emt 0:00:55]} Ke7 {[%emt 0:00:10]} 53. d8=Q+ {[%emt 0:00:05]} Rxd8 {[%emt 0:00:06]} 54. Nxd8 {[%emt 0:00:03]} Kxd8 {[%emt 0:00:05]} 55. Kd4 {[%emt 0:00:02]} 1-0

[Event "Charlotte Fall GM-A 2023"]
[Site "Charlotte"]
[Date "2023.11.20"]
[Round "6.2"]
[White "Bellahcene, Bilel"]
[Black "Chen, Ryo"]
[Result "0-1"]
[ECO "B56"]
[WhiteElo "2502"]
[BlackElo "2367"]
[Annotator "RC"]
[PlyCount "106"]
[EventDate "2023.11.17"]
[EventType "tourn"]
[EventCountry "USA"]
[SourceTitle "playchess.com"]
[Source "ChessBase"]
[SourceQuality "1"]
[TimeControl "5400+30"]

1. e4 {[%emt 0:15:31]} c5 {[%emt 0:00:06]} 2. Nf3 {[%emt 0:00:03]} d6 {[%emt 0:00:08]} 3. d4 {[%emt 0:00:05]} cxd4 {[%emt 0:00:06]} 4. Nxd4 {[%emt 0:00:03]} Nf6 {[%emt 0:00:10]} 5. Nc3 {[%emt 0:00:02]} Nc6 {[%emt 0:00:13]} 6. h4 {[%emt 0:00:05]} e5 {[%emt 0:11:33]} 7. Nb3 {[%emt 0:00:10]} Be6 {[%emt 0:05:56]} 8. Bg5 {[%emt 0:00:05]} Be7 {[%emt 0:02:09]} 9. Qd2 {[%emt 0:00:02]} a5 {[%emt 0:06:33]} 10. a4 {[%emt 0:04:55]} h6 {[%emt 0:09:19]} 11. Bxf6 {[%emt 0:01:08]} Bxf6 {[%emt 0:00:01]} 12. g3 {[%emt 0:00:10]} O-O {[%emt 0:02:26]} 13. O-O-O {[%emt 0:00:42]} Qb6 {[%emt 0:05:27]} 14. Kb1 {[%emt 0:06:58]} Nb4 {[%emt 0:20:43]} 15. Qe3 {[%emt 0:01:32]} Qxe3 {[%emt 0:12:14]} 16. fxe3 {[%emt 0:00:02]} Rfd8 {[%emt 0:00:35]} 17. Bg2 {[%emt 0:01:45]} Rdc8 {[%emt 0:10:21]} 18. Bh3 {[%emt 0:04:27]} b5 {[%emt 0:07:22]} 19. Bxe6 {[%emt 0:06:11]} fxe6 {[%emt 0:00:03]} 20. Nxb5 {[%emt 0:04:24]} Nxc2 {[%emt 0:01:43]} 21. Rd3 {[%emt 0:05:01]} d5 {[%emt 0:00:36]} 22. Nd6 {[%emt 0:05:16]} Nb4 {[%emt 0:01:54]} 23. Rd2 {[%emt 0:00:17]} Rc6 {[%emt 0:00:51]} 24. Nb5 {[%emt 0:00:01]} dxe4 {[%emt 0:00:32]} 25. Rc1 {[%emt 0:02:26]} Rxc1+ {[%emt 0:00:23]} 26. Nxc1 {[%emt 0:00:01]} Nd5 {[%emt 0:00:37]} 27. Nd6 {[%emt 0:03:57]} Rb8 {[%emt 0:00:21]} 28. Rc2 {[%emt 0:00:10]} Nxe3 {[%emt 0:00:35]} 29. Re2 {[%emt 0:00:09]} Nd5 {[%emt 0:00:51]} 30. Nxe4 {[%emt 0:00:16]} Rb4 {[%emt 0:00:08]} 31. Nd3 {[%emt 0:00:16]} Rxa4 {[%emt 0:00:15]} 32. Ndc5 {[%emt 0:00:01]} Rb4 {[%emt 0:01:24]} 33. Nxe6 {[%emt 0:00:10]} Be7 {[%emt 0:00:30]} 34. Ka2 {[%emt 0:01:07]} Nf6 {[%emt 0:00:47]} 35. Nc3 {[%emt 0:00:35]} e4 {[%emt 0:00:24]} 36. Rd2 {[%emt 0:01:32]} Kf7 {[%emt 0:00:25]} 37. Nd4 {[%emt 0:01:02]} Bc5 {[%emt 0:00:24]} 38. Nc6 {[%emt 0:00:37]} Rb6 {[%emt 0:00:22]} 39. Ne5+ {[%emt 0:02:24]} Ke7 {[%emt 0:00:30]} 40. Rc2 {[%emt 0:05:47]} Re6 {[%emt 0:00:27]} 41. Ng6+ {[%emt 0:00:50]} Kf7 {[%emt 0:00:30]} 42. Nf4 {[%emt 0:00:01]} Re8 {[%emt 0:00:51]} 43. Nb5 {[%emt 0:01:02]} Re5 {[%emt 0:00:14]} 44. Kb3 {[%emt 0:00:38]} g5 {[%emt 0:00:42]} 45. hxg5 {[%emt 0:00:02]} hxg5 {[%emt 0:00:27]} 46. Ne2 {[%emt 0:00:01]} Kg6 {[%emt 0:00:16]} 47. Ka4 {[%emt 0:00:19]} Kh5 {[%emt 0:00:55]} 48. Kxa5 {[%emt 0:02:31]} Kg4 {[%emt 0:00:10]} 49. Ka4 {[%emt 0:00:05]} Nh5 {[%emt 0:00:25]} 50. Rc4 {[%emt 0:01:33]} Nxg3 {[%emt 0:00:16]} 51. Nec3 {[%emt 0:00:00]} Kf3 {[%emt 0:00:47]} 52. b4 {[%emt 0:00:11]} Bf2 {[%emt 0:00:33]} 53. Kb3 {[%emt 0:02:09]} Nf5 {[%emt 0:00:32]} 0-1

[Event "Charlotte Fall GM-A 2023"]
[Site "Charlotte"]
[Date "2023.11.20"]
[Round "6.3"]
[White "Mardov, Dimitar"]
[Black "Aarav Dengla"]
[Result "1-0"]
[ECO "D30"]
[WhiteElo "2455"]
[BlackElo "2391"]
[Annotator "RC"]
[PlyCount "89"]
[EventDate "2023.11.17"]
[EventType "tourn"]
[EventCountry "USA"]
[SourceTitle "playchess.com"]
[Source "ChessBase"]
[SourceQuality "1"]
[TimeControl "5400+30"]

1. Nf3 {[%emt 0:00:03]} d5 {[%emt 0:01:50]} 2. d4 {[%emt 0:01:27]} e6 {[%emt 0:00:48]} 3. c4 {[%emt 0:00:46]} a6 {[%emt 0:00:10]} 4. Bg5 {[%emt 0:02:05]} Be7 {[%emt 0:00:10]} 5. Bxe7 {[%emt 0:00:06]} Qxe7 {[%emt 0:00:03]} 6. Nbd2 {[%emt 0:12:14]} Nf6 {[%emt 0:00:23]} 7. Rc1 {[%emt 0:01:14]} b6 {[%emt 0:30:11]} 8. Qa4+ {[%emt 0:14:08]} Bd7 {[%emt 0:13:19]} 9. Qb3 {[%emt 0:10:29]} Nc6 {[%emt 0:05:49]} 10. e3 {[%emt 0:06:06]} O-O {[%emt 0:05:24]} 11. cxd5 {[%emt 0:03:26]} exd5 {[%emt 0:03:02]} 12. Be2 {[%emt 0:00:44]} Na5 {[%emt 0:02:14]} 13. Qc3 {[%emt 0:03:16]} Nb7 {[%emt 0:06:39]} 14. O-O {[%emt 0:01:29]} Rfc8 {[%emt 0:02:53]} 15. Ne5 {[%emt 0:01:54]} c5 {[%emt 0:08:24]} 16. Nxd7 {[%emt 0:06:09]} Qxd7 {[%emt 0:02:24]} 17. dxc5 {[%emt 0:00:46]} bxc5 {[%emt 0:00:41]} 18. Rfd1 {[%emt 0:06:40]} Nd6 {[%emt 0:01:10]} 19. Qa3 {[%emt 0:03:12]} Nb5 {[%emt 0:00:26]} 20. Qa5 {[%emt 0:02:03]} Qe7 {[%emt 0:01:23]} 21. a4 {[%emt 0:03:02]} Nd4 {[%emt 0:13:37]} 22. exd4 {[%emt 0:02:35]} Qxe2 {[%emt 0:00:00]} 23. Re1 {[%emt 0:01:31]} Qd3 {[%emt 0:00:00]} 24. dxc5 {[%emt 0:00:47]} Rab8 {[%emt 0:00:00]} 25. b3 {[%emt 0:01:34]} d4 {[%emt 0:00:00]} 26. c6 {[%emt 0:01:37]} h5 {[%emt 0:00:00]} 27. h3 {[%emt 0:00:32]} h4 {[%emt 0:00:00]} 28. Re7 {[%emt 0:04:23]} Kf8 {[%emt 0:00:00]} 29. Qc5 {[%emt 0:02:35]} Kg8 {[%emt 0:00:00]} 30. Nc4 {[%emt 0:00:46]} Rxb3 {[%emt 0:01:31]} 31. Nd6 {[%emt 0:01:59]} Rc3 {[%emt 0:01:50]} 32. Rxc3 {[%emt 0:00:59]} Qd1+ {[%emt 0:01:03]} 33. Kh2 {[%emt 0:00:03]} dxc3 {[%emt 0:00:04]} 34. Re3 {[%emt 0:04:21]} Nd5 {[%emt 0:01:15]} 35. Nxc8 {[%emt 0:00:40]} Nxe3 {[%emt 0:00:35]} 36. fxe3 {[%emt 0:00:55]} c2 {[%emt 0:01:12]} 37. Ne7+ {[%emt 0:00:19]} Kh7 {[%emt 0:00:00]} 38. c7 {[%emt 0:00:41]} c1=Q {[%emt 0:01:00]} 39. Qf5+ {[%emt 0:00:30]} Kh8 {[%emt 0:00:00]} 40. c8=Q+ {[%emt 0:00:06]} Qxc8 {[%emt 0:00:00]} 41. Qxc8+ {[%emt 0:00:07]} Kh7 {[%emt 0:00:00]} 42. Qg8+ {[%emt 0:00:12]} Kh6 {[%emt 0:00:00]} 43. Qh8+ {[%emt 0:00:05]} Kg5 {[%emt 0:00:00]} 44. Qxg7+ {[%emt 0:00:04]} Kh5 {[%emt 0:00:02]} 45. Qxf7+ {[%emt 0:00:18]} 1-0

[Event "Charlotte Fall GM-A 2023"]
[Site "Charlotte"]
[Date "2023.11.20"]
[Round "6.4"]
[White "Corrales Jimenez, Fidel"]
[Black "Woodward, Andy"]
[Result "1-0"]
[ECO "D83"]
[WhiteElo "2525"]
[BlackElo "2473"]
[Annotator "RC"]
[PlyCount "133"]
[EventDate "2023.11.17"]
[EventType "tourn"]
[EventCountry "USA"]
[SourceTitle "playchess.com"]
[Source "ChessBase"]
[SourceQuality "1"]
[TimeControl "5400+30"]

1. d4 {[%emt 0:08:42]} Nf6 {[%emt 0:00:15]} 2. c4 {[%emt 0:00:06]} g6 {[%emt 0:00:09]} 3. Nc3 {[%emt 0:00:03]} d5 {[%emt 0:00:09]} 4. Bf4 {[%emt 0:00:24]} Bg7 {[%emt 0:00:15]} 5. Rc1 {[%emt 0:00:06]} O-O {[%emt 0:04:20]} 6. e3 {[%emt 0:00:10]} c5 {[%emt 0:07:10]} 7. dxc5 {[%emt 0:00:34]} Be6 {[%emt 0:00:59]} 8. Nf3 {[%emt 0:00:41]} Qa5 {[%emt 0:10:41]} 9. Nd4 {[%emt 0:07:17]} Nc6 {[%emt 0:06:49]} 10. Nxe6 {[%emt 0:00:12]} fxe6 {[%emt 0:00:08]} 11. Qa4 {[%emt 0:05:47]} Qxc5 {[%emt 0:07:48]} 12. Be2 {[%emt 0:00:09]} e5 {[%emt 0:00:55]} 13. cxd5 {[%emt 0:01:07]} exf4 {[%emt 0:04:01]} 14. dxc6 {[%emt 0:00:04]} fxe3 {[%emt 0:01:16]} 15. Qc4+ {[%emt 0:02:20]} Qxc4 {[%emt 0:00:08]} 16. Bxc4+ {[%emt 0:02:31]} Kh8 {[%emt 0:00:11]} 17. cxb7 {[%emt 0:00:04]} Rab8 {[%emt 0:01:24]} 18. Ba6 {[%emt 0:00:19]} exf2+ {[%emt 0:06:23]} 19. Ke2 {[%emt 0:01:05]} Bh6 {[%emt 0:02:02]} 20. Rc2 {[%emt 0:00:04]} Ng4 {[%emt 0:09:30]} 21. Nd1 {[%emt 0:14:18]} Bf4 {[%emt 0:12:41]} 22. h3 {[%emt 0:36:18]} Nh6 {[%emt 0:04:36]} 23. g4 {[%emt 0:06:28]} Rf6 {[%emt 0:03:20]} 24. Bc4 {[%emt 0:03:23]} Rc6 {[%emt 0:03:49]} 25. Nxf2 {[%emt 0:00:17]} Nf7 {[%emt 0:14:01]} 26. Nd3 {[%emt 0:00:34]} Bd6 {[%emt 0:00:00]} 27. Rhc1 {[%emt 0:01:01]} Nd8 {[%emt 0:00:00]} 28. b4 {[%emt 0:01:10]} Nxb7 {[%emt 0:00:00]} 29. b5 {[%emt 0:00:05]} Rc7 {[%emt 0:00:00]} 30. Bd5 {[%emt 0:00:16]} Rxc2+ {[%emt 0:00:00]} 31. Rxc2 {[%emt 0:00:03]} Nd8 {[%emt 0:00:00]} 32. a4 {[%emt 0:00:04]} Kg7 {[%emt 0:00:00]} 33. Ke3 {[%emt 0:00:45]} e6 {[%emt 0:00:00]} 34. Be4 {[%emt 0:00:27]} Kf6 {[%emt 0:00:00]} 35. h4 {[%emt 0:00:05]} Nf7 {[%emt 0:00:00]} 36. Rc6 {[%emt 0:00:16]} Rb6 {[%emt 0:00:00]} 37. Rc8 {[%emt 0:01:51]} Rb8 {[%emt 0:00:17]} 38. Rc1 {[%emt 0:00:15]} Ke7 {[%emt 0:06:13]} 39. Rb1 {[%emt 0:01:09]} Ne5 {[%emt 0:00:00]} 40. Nxe5 {[%emt 0:00:19]} Bxe5 {[%emt 0:00:00]} 41. a5 {[%emt 0:00:18]} Bc7 {[%emt 0:00:00]} 42. b6 {[%emt 0:00:14]} axb6 {[%emt 0:00:00]} 43. a6 {[%emt 0:00:02]} b5 {[%emt 0:00:00]} 44. Ke2 {[%emt 0:01:11]} Bb6 {[%emt 0:00:00]} 45. Rxb5 {[%emt 0:00:15]} Ba7 {[%emt 0:00:00]} 46. Rxb8 {[%emt 0:02:42]} Bxb8 {[%emt 0:00:00]} 47. Ke3 {[%emt 0:00:08]} Kf6 {[%emt 0:00:00]} 48. g5+ {[%emt 0:00:04]} Ke7 {[%emt 0:00:00]} 49. Kd4 {[%emt 0:01:57]} Ba7+ {[%emt 0:00:00]} 50. Kd3 {[%emt 0:00:15]} Bb8 {[%emt 0:00:00]} 51. Ke2 {[%emt 0:00:16]} Ba7 {[%emt 0:00:00]} 52. Kf3 {[%emt 0:00:22]} Kf7 {[%emt 0:00:15]} 53. Bd3 {[%emt 0:00:22]} Ke7 {[%emt 0:00:41]} 54. Kg3 {[%emt 0:00:48]} Kf8 {[%emt 0:00:35]} 55. h5 {[%emt 0:00:08]} h6 {[%emt 0:02:14]} 56. hxg6 {[%emt 0:04:42]} hxg5 {[%emt 0:00:07]} 57. Kg4 {[%emt 0:00:45]} Be3 {[%emt 0:00:06]} 58. Kh5 {[%emt 0:00:08]} Kg7 {[%emt 0:00:07]} 59. Be2 {[%emt 0:00:03]} e5 {[%emt 0:01:29]} 60. Bg4 {[%emt 0:00:02]} Bb6 {[%emt 0:00:11]} 61. Bf5 {[%emt 0:00:03]} Be3 {[%emt 0:00:19]} 62. Bc2 {[%emt 0:00:29]} e4 {[%emt 0:04:55]} 63. Bxe4 {[%emt 0:00:03]} Kg8 {[%emt 0:00:11]} 64. Kg4 {[%emt 0:00:05]} Kg7 {[%emt 0:00:13]} 65. Kf5 {[%emt 0:00:02]} Kg8 {[%emt 0:00:10]} 66. Kf6 {[%emt 0:00:08]} g4 {[%emt 0:01:03]} 67. Bd5+ {[%emt 0:00:04]} 1-0

[Event "Charlotte Fall GM-A 2023"]
[Site "Charlotte"]
[Date "2023.11.20"]
[Round "6.5"]
[White "Cruz, Cristhian"]
[Black "Siddharth, Jagadeesh"]
[Result "1-0"]
[ECO "E67"]
[WhiteElo "2498"]
[BlackElo "2438"]
[Annotator "RC"]
[PlyCount "97"]
[EventDate "2023.11.17"]
[EventType "tourn"]
[EventCountry "USA"]
[SourceTitle "playchess.com"]
[Source "ChessBase"]
[SourceQuality "1"]
[TimeControl "5400+30"]

1. d4 {[%emt 0:03:17]} Nf6 {[%emt 0:00:21]} 2. c4 {[%emt 0:00:06]} g6 {[%emt 0:00:17]} 3. g3 {[%emt 0:01:00]} Bg7 {[%emt 0:00:43]} 4. Bg2 {[%emt 0:00:46]} O-O {[%emt 0:00:07]} 5. Nc3 {[%emt 0:00:27]} d6 {[%emt 0:00:10]} 6. Nf3 {[%emt 0:00:30]} Nbd7 {[%emt 0:00:30]} 7. O-O {[%emt 0:00:30]} e5 {[%emt 0:00:30]} 8. Qc2 {[%emt 0:00:20]} Re8 {[%emt 0:00:05]} 9. Rd1 {[%emt 0:00:31]} Qe7 {[%emt 1:32:17]} 10. e4 {[%emt 0:01:21]} exd4 {[%emt 0:00:00]} 11. Nxd4 {[%emt 0:00:04]} Nc5 {[%emt 0:00:00]} 12. f3 {[%emt 0:01:55]} c6 {[%emt 0:01:30]} 13. Be3 {[%emt 0:03:54]} Nfd7 {[%emt 0:00:00]} 14. Bf2 {[%emt 0:09:04]} h5 {[%emt 0:00:00]} 15. b3 {[%emt 0:07:03]} Ne5 {[%emt 0:00:00]} 16. Rd2 {[%emt 0:02:54]} h4 {[%emt 0:00:00]} 17. Rad1 {[%emt 0:02:06]} h3 {[%emt 0:00:00]} 18. Bh1 {[%emt 0:06:10]} Qf6 {[%emt 0:00:00]} 19. Be3 {[%emt 0:05:14]} Ne6 {[%emt 0:00:00]} 20. Rf2 {[%emt 0:04:02]} a6 {[%emt 0:00:00]} 21. Na4 {[%emt 0:13:37]} Nd7 {[%emt 0:00:00]} 22. Nxe6 {[%emt 0:08:32]} Rxe6 {[%emt 0:00:00]} 23. f4 {[%emt 0:10:28]} Qe7 {[%emt 0:00:00]} 24. c5 {[%emt 0:03:58]} d5 {[%emt 0:00:00]} 25. Bd4 {[%emt 0:04:33]} dxe4 {[%emt 0:00:00]} 26. Bxg7 {[%emt 0:01:04]} Kxg7 {[%emt 0:00:00]} 27. f5 {[%emt 0:00:16]} gxf5 {[%emt 0:00:00]} 28. Rxf5 {[%emt 0:00:13]} e3 {[%emt 0:00:00]} 29. Re1 {[%emt 0:01:34]} Rb8 {[%emt 0:00:00]} 30. Qc3+ {[%emt 0:01:23]} f6 {[%emt 0:00:00]} 31. Qd4 {[%emt 0:01:23]} Ne5 {[%emt 0:00:00]} 32. Nb6 {[%emt 0:00:56]} Ng6 {[%emt 0:00:00]} 33. Nc4 {[%emt 0:02:33]} Bd7 {[%emt 0:00:00]} 34. Rf3 {[%emt 0:01:30]} e2 {[%emt 0:00:00]} 35. Rd3 {[%emt 0:00:24]} Nf8 {[%emt 0:00:00]} 36. Bf3 {[%emt 0:02:01]} Rd8 {[%emt 0:00:00]} 37. Kf2 {[%emt 0:01:09]} a5 {[%emt 0:00:00]} 38. Nd6 {[%emt 0:00:57]} Re5 {[%emt 0:00:00]} 39. Rxe2 {[%emt 0:00:11]} Bc8 {[%emt 0:00:00]} 40. Rde3 {[%emt 0:01:51]} Ng6 {[%emt 0:00:00]} 41. Be4 {[%emt 0:00:19]} Bg4 {[%emt 0:05:18]} 42. Bxg6 {[%emt 0:00:28]} Bxe2 {[%emt 0:00:16]} 43. Nf5+ {[%emt 0:00:40]} Rxf5+ {[%emt 0:01:11]} 44. Bxf5 {[%emt 0:00:04]} Qf8 {[%emt 0:00:00]} 45. Qh4 {[%emt 0:00:28]} Qxc5 {[%emt 0:09:45]} 46. Qh7+ {[%emt 0:00:07]} Kf8 {[%emt 0:00:00]} 47. Kxe2 {[%emt 0:01:03]} Rd2+ {[%emt 0:00:00]} 48. Kxd2 {[%emt 0:00:14]} Qd4+ {[%emt 0:00:00]} 49. Ke2 {[%emt 0:00:11]} 1-0

[Event "Charlotte Fall GM-A 2023"]
[Site "Charlotte"]
[Date "2023.11.20"]
[Round "7.1"]
[White "Siddharth, Jagadeesh"]
[Black "Sandoval Mercado, Carlos"]
[Result "1/2-1/2"]
[ECO "B47"]
[WhiteElo "2438"]
[BlackElo "2397"]
[Annotator "RC"]
[PlyCount "80"]
[EventDate "2023.11.17"]
[EventType "tourn"]
[EventCountry "USA"]
[SourceTitle "playchess.com"]
[Source "ChessBase"]
[SourceQuality "1"]
[TimeControl "5400+30"]

1. e4 {[%emt 0:02:12]} c5 {[%emt 0:01:13]} 2. Nf3 {[%emt 0:00:39]} e6 {[%emt 0:01:18]} 3. d4 {[%emt 0:00:23]} cxd4 {[%emt 0:00:06]} 4. Nxd4 {[%emt 0:00:08]} Nc6 {[%emt 0:00:06]} 5. Nc3 {[%emt 0:00:16]} Qc7 {[%emt 0:00:08]} 6. Ncb5 {[%emt 0:00:54]} Qb8 {[%emt 0:00:52]} 7. Bd3 {[%emt 0:00:19]} a6 {[%emt 0:07:01]} 8. Nxc6 {[%emt 0:00:11]} bxc6 {[%emt 0:00:03]} 9. Nd4 {[%emt 0:00:09]} e5 {[%emt 0:02:45]} 10. Nf5 {[%emt 0:08:48]} d5 {[%emt 0:02:37]} 11. Qf3 {[%emt 0:01:19]} g6 {[%emt 0:09:43]} 12. Ng3 {[%emt 0:12:00]} Be6 {[%emt 0:00:04]} 13. O-O {[%emt 0:01:22]} Bg7 {[%emt 0:03:41]} 14. exd5 {[%emt 0:11:04]} cxd5 {[%emt 0:01:00]} 15. c4 {[%emt 0:00:19]} Nf6 {[%emt 0:17:40]} 16. cxd5 {[%emt 0:05:44]} Bxd5 {[%emt 0:00:05]} 17. Ne4 {[%emt 0:00:17]} Nxe4 {[%emt 0:03:35]} 18. Bxe4 {[%emt 0:00:09]} Bxe4 {[%emt 0:00:03]} 19. Qxe4 {[%emt 0:00:12]} O-O {[%emt 0:00:09]} 20. b3 {[%emt 0:01:59]} Rd8 {[%emt 0:09:57]} 21. Bg5 {[%emt 0:01:08]} Rd4 {[%emt 0:00:49]} 22. Qc6 {[%emt 0:00:14]} Rd6 {[%emt 0:01:36]} 23. Qc2 {[%emt 0:00:48]} a5 {[%emt 0:02:13]} 24. Rad1 {[%emt 0:03:05]} Rd4 {[%emt 0:06:16]} 25. Be3 {[%emt 0:00:37]} Rxd1 {[%emt 0:05:07]} 26. Rxd1 {[%emt 0:00:01]} Qb7 {[%emt 0:00:49]} 27. Rc1 {[%emt 0:04:47]} h6 {[%emt 0:02:32]} 28. h4 {[%emt 0:04:07]} Qb4 {[%emt 0:01:09]} 29. h5 {[%emt 0:04:32]} gxh5 {[%emt 0:02:06]} 30. Qc6 {[%emt 0:00:42]} Rd8 {[%emt 0:00:20]} 31. Bxh6 {[%emt 0:01:05]} Bxh6 {[%emt 0:05:19]} 32. Qxh6 {[%emt 0:00:04]} Qd2 {[%emt 0:00:06]} 33. Qxd2 {[%emt 0:03:42]} Rxd2 {[%emt 0:00:02]} 34. Rc5 {[%emt 0:00:58]} Rxa2 {[%emt 0:00:18]} 35. Rxe5 {[%emt 0:00:04]} Ra3 {[%emt 0:00:50]} 36. Rxh5 {[%emt 0:00:35]} Rxb3 {[%emt 0:00:04]} 37. Rxa5 {[%emt 0:00:06]} Kg7 {[%emt 0:00:03]} 38. g3 {[%emt 0:04:31]} Rc3 {[%emt 0:00:05]} 39. Kg2 {[%emt 0:00:04]} Rc2 {[%emt 0:00:24]} 40. Re5 {[%emt 0:00:14]} Ra2 {[%emt 0:00:09]} 1/2-1/2

[Event "Charlotte Fall GM-A 2023"]
[Site "Charlotte"]
[Date "2023.11.20"]
[Round "7.2"]
[White "Woodward, Andy"]
[Black "Cruz, Cristhian"]
[Result "1/2-1/2"]
[ECO "E06"]
[WhiteElo "2473"]
[BlackElo "2498"]
[Annotator "RC"]
[PlyCount "48"]
[EventDate "2023.11.17"]
[EventType "tourn"]
[EventCountry "USA"]
[SourceTitle "playchess.com"]
[Source "ChessBase"]
[SourceQuality "1"]
[TimeControl "5400+30"]

1. d4 {[%emt 0:00:03]} e6 {[%emt 0:06:52]} 2. c4 {[%emt 0:00:21]} Nf6 {[%emt 0:00:56]} 3. g3 {[%emt 0:00:15]} Bb4+ {[%emt 0:00:35]} 4. Bd2 {[%emt 0:00:12]} Be7 {[%emt 0:00:07]} 5. Bg2 {[%emt 0:00:09]} d5 {[%emt 0:00:42]} 6. Nf3 {[%emt 0:00:32]} O-O {[%emt 0:00:54]} 7. Qc2 {[%emt 0:00:15]} c6 {[%emt 0:00:43]} 8. O-O {[%emt 0:00:18]} b6 {[%emt 0:00:58]} 9. Bf4 {[%emt 0:00:52]} Bb7 {[%emt 0:01:47]} 10. Nbd2 {[%emt 0:00:13]} Nh5 {[%emt 0:01:15]} 11. e3 {[%emt 0:02:03]} Na6 {[%emt 0:02:06]} 12. cxd5 {[%emt 0:15:11]} Nb4 {[%emt 0:08:38]} 13. Qb3 {[%emt 0:06:20]} cxd5 {[%emt 0:03:58]} 14. Rfc1 {[%emt 0:03:07]} Nc6 {[%emt 0:09:16]} 15. Qa4 {[%emt 0:13:43]} Rc8 {[%emt 0:08:24]} 16. Ne5 {[%emt 0:12:33]} Nxf4 {[%emt 0:20:04]} 17. exf4 {[%emt 0:04:33]} b5 {[%emt 0:04:02]} 18. Nxc6 {[%emt 0:09:34]} bxa4 {[%emt 0:03:54]} 19. Nxd8 {[%emt 0:00:30]} Rfxd8 {[%emt 0:00:02]} 20. Bf1 {[%emt 0:01:05]} a3 {[%emt 0:02:32]} 21. bxa3 {[%emt 0:01:09]} Bxa3 {[%emt 0:00:06]} 22. Rxc8 {[%emt 0:00:51]} Rxc8 {[%emt 0:00:02]} 23. Rb1 {[%emt 0:00:19]} Rc7 {[%emt 0:02:46]} 24. Bd3 {[%emt 0:06:12]} Rc1+ {[%emt 0:00:24]} 1/2-1/2